bitfinex-derivatives/quotes_BTCF0:USTF0_20250329
["timestamp","ask_amount","ask_price","bid_price","bid_amount"]
[1743277634320,0.064443,82427.0,82426.0,0.17090606]
[1743277634523,0.068443,82427.0,82426.0,0.20180606]
[1743277634914,0.068443,82427.0,82426.0,0.186107]
[1743277635116,0.068443,82427.0,82426.0,0.20205705]
[1743277635927,0.069443,82427.0,82426.0,0.20205705]
[1743277637019,0.069443,82427.0,82426.0,0.21421619]
[1743277637220,0.069443,82427.0,82426.0,0.22946479]
[1743277637424,0.069443,82427.0,82426.0,0.21730565]
[1743277638022,0.3608,82453.0,82426.0,1.04206228]
[1743277638213,0.21828781,82447.0,82446.0,0.1213376]
[1743277638414,0.21828781,82447.0,82446.0,0.13815788]
[1743277638813,0.21828781,82447.0,82446.0,0.15340648]
[1743277639009,0.21828781,82447.0,82446.0,0.21610648]
[1743277639327,0.22228781,82447.0,82446.0,0.21610648]
[1743277639823,0.22228781,82447.0,82446.0,0.22843311]
[1743277640416,0.22228781,82447.0,82446.0,0.21610648]
[1743277640620,0.33962391,82447.0,82446.0,0.21610648]
[1743277640823,0.34362391,82447.0,82446.0,0.2000462]
[1743277641623,0.22228781,82447.0,82446.0,0.2000462]
[1743277641824,0.00476,82447.0,82446.0,0.2000462]
[1743277642027,0.004,82447.0,82446.0,0.2000462]
[1743277643321,0.1253361,82447.0,82446.0,0.2000462]
[1743277644225,0.1564961,82447.0,82446.0,0.2000462]
[1743277644424,0.1893961,82447.0,82446.0,0.2000462]
[1743277650429,0.1893961,82447.0,82446.0,0.1847976]
[1743277652727,0.1893961,82447.0,82446.0,0.19994856]
[1743277653130,0.1893961,82447.0,82446.0,0.1847976]
[1743277654430,0.1893961,82447.0,82446.0,0.19998529]
[1743277655021,0.5501961,82447.0,82446.0,0.01594769]
[1743277655329,0.5501961,82447.0,82446.0,0.01518769]
[1743277655827,0.5501961,82447.0,82446.0,0.01594769]
[1743277656029,0.5501961,82447.0,82446.0,0.00076]
[1743277656525,0.42886,82447.0,82438.0,0.00018204]
[1743277656723,0.4821479,82439.0,82438.0,0.00018204]
[1743277656929,0.4829479,82439.0,82438.0,0.00018204]
[1743277657523,0.5158479,82439.0,82438.0,0.00018204]
[1743277657725,0.5468479,82439.0,82438.0,0.12225134]
[1743277657930,0.55871302,82439.0,82438.0,0.12225134]
[1743277658230,0.55871302,82439.0,82438.0,0.18275134]
[1743277659028,0.55871302,82439.0,82438.0,0.22373234]
[1743277659232,0.55871302,82439.0,82438.0,0.04188304]
[1743277659432,0.55871302,82439.0,82438.0,0.01666396]
[1743277660225,0.55871302,82439.0,82438.0,0.13801326]
[1743277664330,0.19791302,82439.0,82438.0,0.15467565]
[1743277664539,0.1860479,82439.0,82438.0,0.15467565]
[1743277664731,0.1860479,82439.0,82438.0,0.15467442]
[1743277665335,0.1860479,82439.0,82438.0,0.17989582]
[1743277666141,0.1860479,82439.0,82438.0,0.15467442]
[1743277667037,0.1860479,82439.0,82438.0,0.17991126]
[1743277673644,0.1860479,82439.0,82438.0,0.05856196]
[1743277673834,0.1860479,82439.0,82438.0,0.0419008]
[1743277674238,0.1860479,82439.0,82438.0,0.01666396]
[1743277678150,0.1860479,82439.0,82438.0,0.01594396]
[1743277678348,0.1213655,82427.0,82426.0,0.2120501]
[1743277678554,0.1220855,82427.0,82426.0,0.26033008]
[1743277678857,0.1220855,82427.0,82426.0,0.2441901]
[1743277679245,0.1852855,82427.0,82426.0,0.2441901]
[1743277680151,0.1852855,82427.0,82426.0,0.2451901]
[1743277680551,0.1852855,82427.0,82426.0,0.2461901]
[1743277681251,0.1852855,82427.0,82426.0,0.00264]
[1743277685647,0.1852855,82427.0,82426.0,0.002]
[1743277686452,0.1213773,82419.0,82418.0,0.00018204]
[1743277686655,0.1220973,82419.0,82418.0,0.00090204]
[1743277687257,0.1535973,82419.0,82418.0,0.00090204]
[1743277687447,0.1865973,82419.0,82418.0,0.00090204]
[1743277687649,0.1865973,82419.0,82418.0,0.00790204]
[1743277689254,0.19888883,82419.0,82418.0,0.00790204]
[1743277689654,0.19888883,82419.0,82418.0,0.00718204]
[1743277690453,0.55968883,82419.0,82418.0,0.00718204]
[1743277690750,0.1213876,82412.0,82411.0,0.00048537]
[1743277690955,0.4829476,82412.0,82411.0,0.00124537]
[1743277691550,0.5779476,82412.0,82411.0,0.00124537]
[1743277691956,0.5779476,82412.0,82411.0,0.00624537]
[1743277692747,0.5779476,82412.0,82411.0,0.00548537]
[1743277693553,0.58693921,82412.0,82411.0,0.00548537]
[1743277693752,0.58693921,82412.0,82411.0,0.01048537]
[1743277695752,0.58693921,82412.0,82411.0,0.07248537]
[1743277699171,0.22613921,82412.0,82411.0,0.07248537]
[1743277699472,0.58693921,82412.0,82411.0,0.07324537]
[1743277699671,0.58693921,82412.0,82411.0,0.07248537]
[1743277701066,0.22613921,82412.0,82411.0,0.07248537]
[1743277701270,0.58693921,82412.0,82411.0,0.07312537]
[1743277701461,0.58693921,82412.0,82411.0,0.07248537]
[1743277703972,0.22613921,82412.0,82411.0,0.07248537]
[1743277704171,0.58693921,82412.0,82411.0,0.07248537]
[1743277705775,0.22613921,82412.0,82411.0,0.07248537]
[1743277705964,0.58693921,82412.0,82411.0,0.07248537]
[1743277706164,0.22613921,82412.0,82411.0,0.07248537]
[1743277706565,0.58693921,82412.0,82411.0,0.07248537]
[1743277708170,0.55493921,82412.0,82411.0,0.07248537]
[1743277712776,0.19413921,82412.0,82411.0,0.07248537]
[1743277712985,0.55493921,82412.0,82411.0,0.07248537]
[1743277714677,0.55493921,82412.0,82402.0,0.21772097]
[1743277714983,0.1214068,82399.0,82398.0,0.29066731]
[1743277715178,0.1223268,82399.0,82398.0,0.29134731]
[1743277715875,0.1873268,82399.0,82398.0,0.00068]
[1743277716180,0.1813268,82399.0,82398.0,0.00068]
[1743277716370,0.1763268,82399.0,82398.0,0.00068]
[1743277716782,0.1763268,82399.0,82398.0,0.00468]
[1743277716984,0.1763268,82399.0,82398.0,0.00868]
[1743277719283,0.5371268,82399.0,82398.0,0.00868]
[1743277719985,0.5371268,82399.0,82398.0,0.008]
[1743277720375,0.54913143,82399.0,82398.0,0.008]
[1743277722087,0.54913143,82399.0,82398.0,0.004]
[1743277722473,0.1214097,82397.0,82396.0,0.0649]
[1743277722678,0.1213297,82397.0,82396.0,0.0649]
[1743277722877,0.4821297,82397.0,82396.0,0.0649]
[1743277723673,0.4821297,82397.0,82396.0,0.0659]
[1743277725689,0.1213297,82397.0,82396.0,0.0659]
[1743277725989,0.4821297,82397.0,82396.0,0.0659]
[1743277735290,0.1213297,82397.0,82396.0,0.0659]
[1743277735500,0.4821297,82397.0,82396.0,0.0659]
[1743277738795,0.1213297,82397.0,82396.0,0.0659]
[1743277739295,0.4821297,82397.0,82396.0,0.0659]
[1743277743195,0.1213297,82397.0,82396.0,0.0659]
[1743277743396,0.4821297,82397.0,82396.0,0.0659]
[1743277745209,0.1213297,82397.0,82396.0,0.0659]
[1743277745595,0.4821297,82397.0,82396.0,0.0659]
[1743277745797,0.1213297,82397.0,82396.0,0.0659]
[1743277745999,0.4821297,82397.0,82396.0,0.0659]
[1743277746602,0.1214112,82396.0,82395.0,6e-08]
[1743277746801,0.1858112,82396.0,82395.0,0.00072006]
[1743277749801,0.1858112,82396.0,82395.0,6e-08]
[1743277752203,0.5466112,82396.0,82395.0,6e-08]
[1743277752897,0.5466112,82396.0,82372.0,0.36453522]
[1743277752898,0.1214348,82380.0,82372.0,0.36453522]
[1743277753096,0.72256001,82380.0,82372.0,0.36453522]
[1743277753408,0.4822451,82373.0,82372.0,0.23913822]
[1743277753596,0.60532511,82373.0,82372.0,0.23913822]
[1743277754411,0.66862511,82373.0,82372.0,0.23913822]
[1743277754907,0.68075185,82373.0,82372.0,0.23913822]
[1743277755801,0.1214539,82367.0,82364.0,0.00018204]
[1743277755995,0.1214746,82353.0,82349.0,0.67219724]
[1743277756201,0.121479,82350.0,82349.0,0.32957004]
[1743277756505,0.483599,82350.0,82349.0,0.33021004]
[1743277757203,0.60503264,82350.0,82349.0,0.33021004]
[1743277757404,0.61416712,82350.0,82349.0,0.00064]
[1743277757705,0.121482,82348.0,82341.0,0.00018204]
[1743277757907,0.122802,82348.0,82341.0,0.00018204]
[1743277758297,0.153602,82348.0,82341.0,0.00018204]
[1743277758503,0.27503564,82348.0,82341.0,0.00018204]
[1743277759010,0.27803564,82348.0,82341.0,0.00018204]
[1743277759515,0.1214908,82342.0,82341.0,0.00018204]
[1743277759815,0.2448108,82342.0,82341.0,0.00018204]
[1743277759997,0.1228108,82342.0,82341.0,0.00018204]
[1743277760204,0.2448108,82342.0,82341.0,0.00018204]
[1743277760404,0.3079108,82342.0,82341.0,0.00018204]
[1743277761312,0.3198868,82342.0,82341.0,0.00018204]
[1743277761702,0.3238868,82342.0,82341.0,0.00018204]
[1743277762604,0.1215026,82334.0,82333.0,0.0654]
[1743277762799,0.4836226,82334.0,82333.0,0.0654]
[1743277763003,0.1215129,82327.0,82326.0,0.0324]
[1743277763205,0.1228329,82327.0,82326.0,0.0324]
[1743277763402,0.1347602,82327.0,82326.0,0.03312]
[1743277764519,0.1347602,82327.0,82326.0,0.09832]
[1743277765309,0.1347602,82327.0,82326.0,0.2198344]
[1743277765614,0.1228329,82327.0,82326.0,0.2198344]
[1743277768417,0.48416,82327.0,82300.0,0.1]
[1743277768713,0.4823292,82316.0,82310.0,0.1865366]
[1743277768912,0.48388921,82316.0,82315.0,0.00112594]
[1743277769105,0.48388921,82316.0,82315.0,0.00048594]
[1743277769304,0.48388921,82316.0,82315.0,0.00112594]
[1743277769500,0.49632369,82316.0,82315.0,0.00048594]
[1743277769706,0.48388921,82316.0,82315.0,0.00048594]
[1743277769910,0.48388921,82316.0,82315.0,0.00112594]
[1743277770099,0.48388921,82316.0,82315.0,0.06642594]
[1743277771308,0.48388921,82316.0,82315.0,0.18795664]
[1743277771504,0.48388921,82316.0,82315.0,0.12265664]
[1743277771808,0.48388921,82316.0,82315.0,0.00112594]
[1743277772005,0.48388921,82316.0,82315.0,0.00048594]
[1743277772206,0.51698921,82316.0,82315.0,0.00048594]
[1743277776506,0.51698921,82316.0,82315.0,0.00116594]
[1743277778917,0.51698921,82316.0,82315.0,0.00048594]
[1743277780711,0.15618921,82316.0,82315.0,0.00048594]
[1743277780912,0.51698921,82316.0,82315.0,0.00204594]
[1743277781211,0.51698921,82316.0,82315.0,0.00048594]
[1743277781414,0.15618921,82316.0,82315.0,0.00048594]
[1743277781614,0.51698921,82316.0,82315.0,0.00120594]
[1743277781814,0.51698921,82316.0,82315.0,0.00048594]
[1743277785925,0.15618921,82316.0,82315.0,0.00048594]
[1743277786114,0.51698921,82316.0,82315.0,0.00048594]
[1743277789127,0.57608138,82316.0,82315.0,0.00048594]
[1743277789516,0.69816138,82316.0,82315.0,0.00048594]
[1743277791816,0.33736138,82316.0,82315.0,0.00048594]
[1743277792026,0.69816138,82316.0,82315.0,0.00048594]
[1743277792827,0.33736138,82316.0,82315.0,0.00048594]
[1743277793031,0.69816138,82316.0,82315.0,0.00048594]
[1743277794618,0.45455218,82316.0,82315.0,0.00048594]
[1743277794923,0.21528138,82316.0,82315.0,0.00048594]
[1743277795125,0.21528138,82316.0,82315.0,0.00204594]
[1743277795326,0.21528138,82316.0,82315.0,0.00048594]
[1743277795915,0.21528138,82316.0,82315.0,0.00204594]
[1743277796221,0.21528138,82316.0,82315.0,0.00048594]
[1743277796424,0.21528138,82316.0,82315.0,0.00208594]
[1743277796732,0.21528138,82316.0,82315.0,0.00048594]
[1743277798423,0.21528138,82316.0,82315.0,0.00120594]
[1743277798622,0.57608138,82316.0,82315.0,0.00120594]
[1743277801335,0.57608138,82316.0,82315.0,0.00048594]
[1743277801532,0.51698921,82316.0,82315.0,0.00048594]
[1743277801730,0.51698921,82316.0,82315.0,0.00112594]
[1743277802430,0.1215425,82307.0,82306.0,0.0324]
[1743277802630,0.12330251,82307.0,82306.0,0.0324]
[1743277802933,0.12330251,82307.0,82304.0,0.1542457]
[1743277802934,0.1215454,82305.0,82304.0,0.0327]
[1743277803129,0.12330541,82305.0,82304.0,0.0327]
[1743277803525,0.1215469,82304.0,82303.0,0.0324]
[1743277803728,0.13528862,82304.0,82303.0,0.0324]
[1743277803933,0.16538862,82304.0,82303.0,0.0324]
[1743277804128,0.16538862,82304.0,82303.0,0.1539484]
[1743277804741,0.16538862,82304.0,82303.0,0.1870484]
[1743277806025,0.15340691,82304.0,82303.0,0.1870484]
[1743277809740,0.39389808,82304.0,82303.0,0.1870484]
[1743277811641,0.42519808,82304.0,82303.0,0.1870484]
[1743277812734,0.24380131,82304.0,82303.0,0.1870484]
[1743277812934,0.24380131,82304.0,82303.0,0.1546484]
[1743277814543,0.24380131,82304.0,82303.0,0.1215484]
[1743277819345,0.12225441,82304.0,82300.0,0.2215526]
[1743277819643,0.1215513,82301.0,82300.0,0.2215526]
[1743277819948,0.12331131,82301.0,82300.0,0.2215526]
[1743277820539,0.15651131,82301.0,82300.0,0.2215526]
[1743277820741,0.15651131,82301.0,82300.0,0.2859526]
[1743277821840,0.15651131,82301.0,82300.0,0.2545526]
[1743277822041,0.15651131,82301.0,82300.0,0.2215526]
[1743277824955,0.03496001,82301.0,82300.0,0.2215526]
[1743277825155,0.15651131,82301.0,82300.0,0.2851526]
[1743277829762,0.18981131,82301.0,82300.0,0.2851526]
[1743277832748,0.06826001,82301.0,82300.0,0.2851526]
[1743277832949,0.00176001,82301.0,82300.0,0.2851526]
[1743277834766,0.00176001,82301.0,82300.0,0.6459526]
[1743277834953,0.00176001,82301.0,82300.0,0.4071526]
[1743277835153,0.00176001,82301.0,82300.0,0.7679526]
[1743277835854,0.14522001,82303.0,82302.0,0.1215499]
[1743277836054,0.14698002,82303.0,82302.0,0.1215499]
[1743277839770,0.00176001,82303.0,82302.0,0.4823499]
[1743277839967,0.14115689,82306.0,82305.0,0.1215454]
[1743277840169,0.1429169,82306.0,82305.0,0.1215454]
[1743277840871,0.1429169,82306.0,82305.0,0.1538454]
[1743277843567,0.1429169,82306.0,82305.0,0.5146454]
[1743277844163,0.03406001,82306.0,82305.0,0.5146454]
[1743277844471,0.03406001,82306.0,82305.0,0.1538454]
[1743277844655,0.03406001,82306.0,82305.0,0.5146454]
[1743277844861,0.06596001,82306.0,82305.0,0.5146454]
[1743277847260,0.14522001,82312.0,82307.0,0.1215425]
[1743277847470,0.13956685,82311.0,82310.0,0.121538]
[1743277847665,0.14076686,82311.0,82310.0,0.482978]
[1743277847864,0.13956685,82311.0,82310.0,0.482978]
[1743277848065,0.13956685,82311.0,82310.0,0.548578]
[1743277849173,0.13956685,82311.0,82310.0,0.187778]
[1743277849384,0.14076686,82311.0,82310.0,0.548578]
[1743277849671,0.13956685,82311.0,82310.0,0.187778]
[1743277849871,0.14084685,82311.0,82310.0,0.548578]
[1743277850073,0.13956685,82311.0,82310.0,0.548578]
[1743277850661,0.0309,82311.0,82310.0,0.548578]
[1743277856665,0.0309,82311.0,82310.0,0.187778]
[1743277857065,0.0309,82311.0,82310.0,0.548578]
[1743277860169,0.18148929,82328.0,82316.0,0.0607642]
[1743277860368,0.1826893,82328.0,82327.0,0.8431129]
[1743277860568,0.1826893,82328.0,82327.0,0.9657129]
[1743277860978,0.1826893,82328.0,82327.0,0.97787058]
[1743277861174,0.1826893,82328.0,82327.0,0.61707058]
[1743277861480,0.1826893,82328.0,82327.0,0.68197058]
[1743277861684,0.00120001,82328.0,82327.0,0.68197058]
[1743277861981,0.00520001,82328.0,82327.0,0.68197058]
[1743277862169,0.00520001,82328.0,82327.0,1.04277058]
[1743277862872,0.00820001,82328.0,82327.0,1.04277058]
[1743277865583,0.00420001,82328.0,82327.0,1.04277058]
[1743277865974,0.00120001,82328.0,82327.0,1.04277058]
[1743277866174,0.00120001,82328.0,82327.0,0.32117058]
[1743277866375,0.00120001,82328.0,82327.0,1.04277058]
[1743277866682,0.0958,82332.0,82331.0,0.121507]
[1743277866884,0.0958,82332.0,82331.0,0.122147]
[1743277867679,0.0004,82340.0,82333.0,0.0607513]
[1743277867879,0.0004,82340.0,82339.0,0.4822952]
[1743277868184,0.00172,82340.0,82339.0,0.4829352]
[1743277868479,0.0004,82340.0,82339.0,0.4829352]
[1743277869279,0.00260001,82340.0,82339.0,0.4829352]
[1743277869979,0.0014,82340.0,82339.0,0.4829352]
[1743277870376,0.0014,82340.0,82339.0,0.5140352]
[1743277871179,0.0646,82340.0,82339.0,0.5140352]
[1743277872787,0.0329,82340.0,82339.0,0.5140352]
[1743277872985,0.1214786,82351.0,82347.0,0.1214834]
[1743277873190,0.00138216,82348.0,82347.0,0.4829234]
[1743277874386,0.00638216,82348.0,82347.0,0.4829234]
[1743277875593,0.00638216,82348.0,82347.0,0.49514833]
[1743277875995,0.00518215,82348.0,82347.0,0.52654833]
[1743277876388,0.07018215,82348.0,82347.0,0.52654833]
[1743277876588,0.07018215,82348.0,82347.0,0.4829234]
[1743277876788,0.07138216,82348.0,82347.0,0.4829234]
[1743277877595,0.07018215,82348.0,82347.0,0.4829234]
[1743277878084,0.19166415,82348.0,82347.0,0.4829234]
[1743277878288,0.19286416,82348.0,82347.0,0.4829234]
[1743277880899,0.19286416,82348.0,82347.0,0.5155234]
[1743277881295,0.19286416,82348.0,82347.0,0.1547234]
[1743277897696,0.00638216,82348.0,82347.0,0.17021906]
[1743277898705,0.00518215,82348.0,82347.0,0.18564352]
[1743277898896,0.00518215,82348.0,82347.0,0.21584352]
[1743277899103,0.18079384,82352.0,82351.0,0.1214775]
[1743277899306,0.18203385,82352.0,82351.0,0.13765316]
[1743277899611,0.18203385,82352.0,82351.0,0.15307762]
[1743277900116,0.0004,82356.0,82355.0,0.1214716]
[1743277900306,0.00088,82356.0,82355.0,0.49844726]
[1743277900624,0.21839921,82360.0,82359.0,0.1214657]
[1743277900805,0.21911921,82360.0,82359.0,0.13760136]
[1743277901002,0.21911921,82360.0,82359.0,0.15302582]
[1743277901310,0.21911921,82360.0,82359.0,0.22789859]
[1743277903207,0.21911921,82360.0,82359.0,0.22889859]
[1743277903709,0.21911921,82360.0,82359.0,0.22989859]
[1743277904108,0.00090215,82360.0,82359.0,0.22989859]
[1743277906011,0.00018215,82360.0,82359.0,0.22889859]
[1743277907225,0.00018215,82360.0,82359.0,0.22923972]
[1743277907514,0.00018215,82360.0,82359.0,0.59003972]
[1743277907722,0.00018215,82360.0,82359.0,0.22923972]
[1743277908016,0.00018215,82360.0,82359.0,0.57461526]
[1743277908803,0.00018215,82360.0,82359.0,0.21381526]
[1743277909112,0.00018215,82360.0,82359.0,0.57461526]
[1743277913820,0.00018215,82360.0,82359.0,0.58985135]
[1743277915217,0.0308,82371.0,82370.0,0.1214495]
[1743277915417,0.0308,82371.0,82370.0,0.49872629]
[1743277915820,0.0308,82371.0,82370.0,0.51396238]
[1743277916324,0.0308,82371.0,82370.0,0.54466238]
[1743277916507,0.0612,82371.0,82370.0,0.57676238]
[1743277916911,0.06384,82371.0,82370.0,0.57676238]
[1743277917417,0.06384,82371.0,82370.0,0.58876951]
[1743277917613,0.06584,82371.0,82370.0,0.57676238]
[1743277918022,0.06584,82371.0,82370.0,0.21596238]
[1743277918214,0.216848,82371.0,82370.0,0.13732559]
[1743277918517,0.217488,82371.0,82370.0,0.1220895]
[1743277918922,0.09604,82371.0,82370.0,0.1220895]
[1743277921719,0.0954,82371.0,82370.0,0.1220895]
[1743277921919,0.0344,82371.0,82370.0,0.13770905]
[1743277922118,0.0636,82376.0,82375.0,0.1214421]
[1743277922315,0.0636,82376.0,82375.0,0.4829621]
[1743277922623,0.06436,82376.0,82375.0,0.4829621]
[1743277922823,0.06436,82376.0,82375.0,0.5459621]
[1743277923025,0.0636,82376.0,82375.0,0.5459621]
[1743277923226,0.06432,82376.0,82375.0,0.5459621]
[1743277923416,0.06832,82376.0,82375.0,0.5459621]
[1743277923818,0.0706,82376.0,82375.0,0.5459621]
[1743277924018,0.07124,82376.0,82375.0,0.5459621]
[1743277925628,0.1926807,82376.0,82375.0,0.5459621]
[1743277925820,0.1926807,82376.0,82375.0,0.1851621]
[1743277926026,0.1926807,82376.0,82375.0,0.5459621]
[1743277929037,0.1926807,82376.0,82375.0,0.00072]
[1743277929334,0.121451,82369.0,82368.0,0.0607261]
[1743277929528,0.122091,82369.0,82368.0,0.0613661]
[1743277929932,0.185191,82369.0,82368.0,0.0613661]
[1743277931230,0.187191,82369.0,82368.0,0.0613661]
[1743277931430,0.189191,82369.0,82368.0,0.0613661]
[1743277932131,0.189191,82369.0,82368.0,0.00064]
[1743277932323,0.189191,82369.0,82362.0,0.00018215]
[1743277932324,0.1214598,82363.0,82362.0,0.00018215]
[1743277932531,0.4830198,82363.0,82362.0,0.00018215]
[1743277932832,0.1214702,82356.0,82355.0,0.218716]
[1743277933037,0.1222302,82356.0,82355.0,0.219356]
[1743277933335,0.13411885,82356.0,82355.0,0.219356]
[1743277933837,0.19851885,82356.0,82355.0,0.219356]
[1743277934332,0.19851885,82356.0,82355.0,0.221356]
[1743277934925,0.19851885,82356.0,82355.0,0.223356]
[1743277935325,0.19851885,82356.0,82355.0,0.00464]
[1743277937826,0.19851885,82356.0,82355.0,0.004]
[1743277938229,0.19851885,82356.0,82355.0,0.00464]
[1743277938430,0.19851885,82356.0,82355.0,0.004]
[1743277939443,0.19851885,82356.0,82355.0,0.00468]
[1743277940038,0.19851885,82356.0,82355.0,0.004]
[1743277942534,0.1222302,82356.0,82355.0,0.1261116]
[1743277942740,0.1222302,82356.0,82355.0,0.00464]
[1743277942741,0.13434363,82356.0,82355.0,0.00464]
[1743277943534,0.13434363,82356.0,82355.0,0.06884]
[1743277943836,0.1222302,82356.0,82355.0,0.06884]
[1743277944432,0.1222302,82356.0,82355.0,0.1903116]
[1743277950143,0.00076,82356.0,82355.0,0.1903116]
[1743277950336,0.1214625,82362.0,82361.0,0.1214628]
[1743277950538,0.00072,82362.0,82361.0,0.4829428]
[1743277950845,0.1221813,82362.0,82361.0,0.49845488]
[1743277951045,0.1214613,82362.0,82361.0,0.56315488]
[1743277951230,0.1221413,82362.0,82361.0,0.56315488]
[1743277951431,0.1221413,82362.0,82361.0,0.1868428]
[1743277952742,0.1221413,82362.0,82361.0,0.06538]
[1743277952938,0.1221413,82362.0,82361.0,0.0647]
[1743277953151,0.1221413,82362.0,82361.0,0.06542]
[1743277953643,0.1221413,82362.0,82361.0,0.1868828]
[1743277967350,0.00068,82362.0,82361.0,0.1868828]
[1743277968054,0.00068,82362.0,82361.0,0.5476828]
[1743277968249,0.10934636,82362.0,82361.0,0.55981574]
[1743277968444,0.10942636,82362.0,82361.0,0.55981574]
[1743277971145,0.10866636,82362.0,82361.0,0.55981574]
[1743277971754,0.10866636,82368.0,82365.0,0.1214569]
[1743277971950,0.10866636,82368.0,82367.0,0.1214539]
[1743277972153,0.10934636,82368.0,82367.0,0.1214539]
[1743277972354,0.10866636,82368.0,82367.0,0.1839339]
[1743277973360,0.10966636,82368.0,82367.0,0.1839339]
[1743277973658,0.11066636,82368.0,82367.0,0.1839339]
[1743277974249,0.10966636,82368.0,82367.0,0.1839339]
[1743277974460,0.11066636,82368.0,82367.0,0.1839339]
[1743277974652,0.11138636,82368.0,82367.0,0.1839339]
[1743277975954,0.00272,82368.0,82367.0,0.1839339]
[1743277976159,0.002,82368.0,82367.0,0.1839339]
[1743277979859,0.00272,82368.0,82367.0,0.5447339]
[1743277980162,0.002,82368.0,82367.0,0.5447339]
[1743277980953,0.10866636,82373.0,82372.0,0.1214466]
[1743277981160,0.10934636,82373.0,82372.0,0.1221266]
[1743277981757,0.10934636,82373.0,82372.0,0.1858266]
[1743277981957,0.10934636,82373.0,82372.0,0.19786031]
[1743277982367,0.11234636,82373.0,82372.0,0.19786031]
[1743277983261,0.11534636,82373.0,82372.0,0.19786031]
[1743277983671,0.00668,82373.0,82372.0,0.19786031]
[1743277983858,0.006,82373.0,82372.0,0.19786031]
[1743277985169,0.006,82373.0,82372.0,0.55866031]
[1743277986671,0.14462055,82381.0,82372.0,1.06881371]
[1743277986968,0.0004,82388.0,82386.0,0.1214259]
[1743277987166,0.21821706,82392.0,82391.0,0.1214186]
[1743277987370,0.0623,82401.0,82395.0,0.1214127]
[1743277987371,0.21821706,82396.0,82395.0,0.1214127]
[1743277987568,0.21921706,82396.0,82395.0,0.1223327]
[1743277988067,0.21921706,82396.0,82395.0,0.13425249]
[1743277988269,0.21921706,82396.0,82395.0,0.19775249]
[1743277989970,0.22521706,82396.0,82395.0,0.19775249]
[1743277990172,0.22521706,82396.0,82395.0,0.1858327]
[1743277990790,0.22921706,82396.0,82395.0,0.1534327]
[1743277991183,0.35062826,82396.0,82395.0,0.1534327]
[1743277992383,0.35062826,82396.0,82395.0,0.1223327]
[1743277992584,0.1324112,82396.0,82395.0,0.1223327]
[1743277993686,0.011,82396.0,82395.0,0.1223327]
[1743277993880,0.01,82396.0,82395.0,0.1223327]
[1743277994080,0.01092,82396.0,82395.0,0.1223327]
[1743277994285,0.01092,82396.0,82395.0,0.1883327]
[1743277994981,0.1323312,82396.0,82395.0,0.1883327]
[1743277995983,0.01092,82396.0,82395.0,0.1883327]
[1743277996793,0.01092,82396.0,82395.0,0.5491327]
[1743277996982,0.1323312,82396.0,82395.0,0.5491327]
[1743277998382,0.1323312,82396.0,82395.0,0.1883327]
[1743277999784,0.01092,82396.0,82395.0,0.1883327]
[1743278000284,0.01,82396.0,82395.0,0.1874127]
[1743278005707,0.01104001,82396.0,82395.0,0.1884527]
[1743278008300,0.01,82396.0,82395.0,0.1884527]
[1743278008501,0.01092,82396.0,82395.0,0.1884527]
[1743278009202,0.01,82396.0,82395.0,0.1884527]
[1743278009703,0.01092,82396.0,82395.0,0.1884527]
[1743278012298,0.1323312,82396.0,82395.0,0.1884527]
[1743278012502,0.01092,82396.0,82395.0,0.1884527]
[1743278012705,0.01092,82396.0,82395.0,0.00104]
[1743278012706,0.37172,82396.0,82395.0,0.00104]
[1743278012905,0.6431312,82396.0,82395.0,0.00064]
[1743278013199,0.121423,82388.0,82387.0,0.00018215]
[1743278013406,0.483143,82388.0,82387.0,0.00082215]
[1743278014004,0.546543,82388.0,82387.0,0.00082215]
[1743278014406,0.546543,82388.0,82387.0,0.12224655]
[1743278015100,0.552543,82388.0,82387.0,0.12224655]
[1743278015304,0.36772,82388.0,82387.0,0.15334655]
[1743278015499,0.00692,82388.0,82387.0,0.15334655]
[1743278015890,0.00492,82388.0,82387.0,0.15334655]
[1743278016098,0.01092,82388.0,82387.0,0.15334655]
[1743278016301,0.01,82388.0,82387.0,0.15334655]
[1743278016595,0.005,82388.0,82387.0,0.15334655]
[1743278016801,0.00592,82388.0,82387.0,0.15334655]
[1743278017909,0.00292,82388.0,82387.0,0.15334655]
[1743278020008,0.03312,82388.0,82387.0,0.15334655]
[1743278020308,0.154543,82388.0,82387.0,0.15334655]
[1743278026907,0.00292,82388.0,82387.0,0.15334655]
[1743278027604,0.124343,82388.0,82387.0,0.15334655]
[1743278029806,0.154743,82388.0,82387.0,0.15334655]
[1743278032326,0.00292,82388.0,82387.0,0.15334655]
[1743278033914,0.124343,82388.0,82387.0,0.15334655]
[1743278037827,0.00292,82388.0,82387.0,0.15334655]
[1743278038430,0.002,82388.0,82387.0,0.15334655]
[1743278044237,0.123423,82388.0,82387.0,0.15334655]
[1743278044422,0.123423,82388.0,82387.0,0.00082215]
[1743278044621,0.123343,82388.0,82387.0,0.00082215]
[1743278044924,0.1214289,82384.0,82383.0,0.2181516]
[1743278045124,0.6045889,82384.0,82383.0,0.2191116]
[1743278045726,0.6045889,82384.0,82383.0,0.00096]
[1743278046239,0.6065889,82384.0,82383.0,0.00096]
[1743278047235,0.6085889,82384.0,82383.0,0.00096]
[1743278049631,0.6676321,82384.0,82383.0,0.00096]
[1743278049831,0.1214348,82380.0,82379.0,0.1214356]
[1743278050026,0.1223148,82380.0,82379.0,0.1221156]
[1743278050235,0.1223148,82380.0,82379.0,0.00068]
[1743278050837,0.1861148,82380.0,82379.0,0.00068]
[1743278051034,0.1861148,82380.0,82379.0,0.06358]
[1743278051228,0.19923534,82380.0,82379.0,0.1850162]
[1743278051532,0.1871148,82380.0,82379.0,0.1850162]
[1743278051725,0.1994038,82380.0,82379.0,0.1850162]
[1743278052131,0.2004038,82380.0,82379.0,0.06358]
[1743278052733,0.2004038,82380.0,82379.0,0.1850162]
[1743278053243,0.1881148,82380.0,82379.0,0.1850162]
[1743278054331,0.1243148,82380.0,82379.0,0.1850162]
[1743278054731,0.00288,82380.0,82379.0,0.1850162]
[1743278056432,0.00188,82380.0,82379.0,0.1850162]
[1743278056632,0.00088,82380.0,82379.0,0.1870162]
[1743278056839,0.00088,82380.0,82379.0,0.1880162]
[1743278057230,0.00088,82380.0,82379.0,0.1850162]
[1743278057429,0.00088,82380.0,82379.0,0.1870162]
[1743278058036,0.14494546,82386.0,82385.0,0.1214274]
[1743278058241,0.14578546,82386.0,82385.0,0.1220674]
[1743278058939,0.14578546,82386.0,82385.0,0.1868674]
[1743278058940,0.00084,82386.0,82385.0,0.1868674]
[1743278059538,0.14494546,82391.0,82390.0,0.12142]
[1743278059836,0.18118182,82396.0,82395.0,0.1214127]
[1743278060038,0.00068,82396.0,82395.0,0.1220927]
[1743278060438,0.00068,82396.0,82395.0,0.1547927]